fUSD/lending_fUSD_20250302
["ID","MTS","AMOUNT","RATE_DAILY","PERIOD"]
[355159981,1740937888308,-574.39,0.00026541,2]
[355159982,1740937888318,-500.0,0.00026541,2]
[355159983,1740937888328,-661.62,0.00026541,2]
[355159984,1740937888338,-500.0,0.00026541,2]
[355159985,1740937888347,-500.0,0.00026541,2]
[355159986,1740937888357,-500.0,0.00026541,2]
[355159987,1740937888367,-589.12,0.00026541,2]
[355159988,1740937888377,-212.1,0.00026541,2]
[355159989,1740937888386,-500.0,0.00026541,2]
[355159990,1740937888396,-514.6,0.00026541,2]
[355159991,1740937888405,-500.0,0.00026541,2]
[355159992,1740937888415,-551.39,0.00026541,2]
[355159993,1740937888425,-500.0,0.00026541,2]
[355159994,1740937888434,-500.0,0.00026541,2]
[355159995,1740937888444,-883.35,0.00026541,2]
[355159996,1740937888457,-500.0,0.00026541,2]
[355159997,1740937888685,-500.0,0.00026541,2]
[355159998,1740937888696,-1359.56,0.00026541,2]
[355159999,1740937888711,-2139.64,0.00026541,2]
[355160000,1740937888722,-500.0,0.00026541,2]
[355160001,1740937888733,-500.0,0.00026541,2]
[355160002,1740937888743,-666.3,0.00026541,2]
[355160003,1740937888754,-1000.0,0.00026541,2]
[355160004,1740937888765,-506.21,0.00026541,2]
[355160005,1740937888776,-500.0,0.00026541,2]
[355160006,1740937888786,-1243.74,0.00026541,2]
[355160007,1740937888797,-551.88,0.00026541,2]
[355160008,1740937888807,-1338.27,0.00026541,2]
[355160009,1740937888818,-580.22,0.00026541,2]
[355160010,1740937888829,-500.0,0.00026541,2]
[355160011,1740937888839,-570.58,0.00026541,2]
[355160012,1740937888850,-151.0,0.00026541,7]
[355160013,1740937888860,-500.0,0.00026541,2]
[355160014,1740937888871,-900.63,0.00026541,2]
[355160015,1740937888882,-248.019775,0.00026541,7]
[355160016,1740937888892,-500.0,0.00026541,2]
[355160017,1740937888903,-711.69,0.00026541,2]
[355160018,1740937888913,-248.019775,0.00026541,7]
[355160019,1740937888925,-1990.27,0.00026541,2]
[355160020,1740937888935,-151.0,0.00026541,7]
[355160021,1740937888946,-500.0,0.00026541,2]
[355160022,1740937888963,-789.39,0.00026541,2]
[355160023,1740937888974,-230.222455,0.00026541,7]
[355160024,1740937888984,-2000.73,0.00026541,2]
[355160025,1740937888994,-230.222455,0.00026541,7]
[355160026,1740937889004,-561.03,0.00026541,2]
[355160027,1740937889014,-1144.17,0.00026541,2]
[355160028,1740937889024,-500.0,0.00026541,2]
[355160029,1740937889034,-500.0,0.00026541,2]
[355160030,1740937889045,-10000.0,0.00026541,7]
[355160031,1740937889055,-551.08,0.00026541,2]
[355160032,1740937889064,-10000.0,0.00026541,7]
[355160033,1740937889074,-812.93,0.00026541,2]
[355160034,1740937889084,-7762.2384,0.00026541,7]
[355160035,1740937889094,-615.1,0.00026541,2]
[355160036,1740937889103,-500.0,0.00026541,2]
[355160037,1740937889112,-623.5,0.00026541,2]
[355160038,1740937889123,-500.0,0.00026541,2]
[355160039,1740937889132,-500.0,0.00026541,2]
[355160040,1740937889142,-500.0,0.00026541,2]
[355160041,1740937889152,-762.88,0.00026541,2]
[355160042,1740937889162,-2231.13453195,0.00026543,2]
[355160043,1740937889172,-194.048075,0.00026574,7]
[355160044,1740937889181,-151.79054,0.00026574,7]
[355160045,1740937889191,-151.0,0.00026574,7]
[355160046,1740937889201,-151.0,0.00026574,7]
[355160047,1740937889214,-500.0,0.00026574,2]
[355160048,1740937889224,-296.964705,0.00026574,7]
[355160049,1740937889233,-296.964705,0.00026574,7]
[355160050,1740937889249,-151.0,0.00026574,7]
[355160051,1740937889258,-153.047301,0.00026574,7]
[355160052,1740937889268,-151.0,0.00026574,5]
[355160053,1740937889277,-500.0,0.00026575,2]
[355160054,1740937889286,-678.56,0.00026575,2]
[355160055,1740937889295,-500.0,0.00026575,2]
[355160056,1740937889305,-500.0,0.00026575,2]
[355160057,1740937889314,-500.0,0.00026575,2]
[355160058,1740937889323,-701.59,0.00026575,2]
[355160059,1740937889332,-500.0,0.00026575,2]
[355160060,1740937889342,-500.0,0.00026575,2]
[355160061,1740937889352,-362.39064584,0.0002659,4]
[355160062,1740937889362,-500.0,0.00026714,2]
[355160063,1740937889372,-500.0,0.00026714,2]
[355160064,1740937889382,-1027.09,0.00026714,2]
[355160065,1740937889393,-500.0,0.00026714,2]
[355160066,1740937889402,-500.0,0.00026714,2]
[355160067,1740937889412,-661.31,0.00026714,2]
[355160068,1740937889422,-500.0,0.00026714,2]
[355160069,1740937889432,-664.68,0.00026714,2]
[355160070,1740937889442,-500.0,0.00026714,2]
[355160071,1740937889452,-500.0,0.00026714,2]
[355160072,1740937889466,-688.44,0.00026714,2]
[355160073,1740937889477,-799.43,0.00026714,2]
[355160074,1740937889487,-1011.96,0.00026714,2]
[355160075,1740937889497,-500.0,0.00026714,2]
[355160076,1740937889506,-547.39,0.00026714,2]
[355160077,1740937889516,-980.75,0.00026714,2]
[355160078,1740937889526,-758.27,0.00026714,2]
[355160079,1740937889536,-500.0,0.00026714,2]
[355160080,1740937889545,-638.55,0.00026714,2]
[355160081,1740937889555,-500.0,0.00026714,2]
[355160082,1740937889565,-500.0,0.00026714,2]
[355160083,1740937889575,-386.98,0.00026714,2]
[355160084,1740937889585,-500.0,0.00026714,2]
[355160085,1740937889595,-537.89,0.00026714,2]
[355160086,1740937889605,-1342.57,0.00026714,2]
[355160087,1740937889614,-500.0,0.00026714,2]
[355160088,1740937889624,-501.29,0.00026714,2]
[355160089,1740937889634,-2905.46,0.00026714,2]
[355160090,1740937889644,-187.04,0.00026715,2]
[355160091,1740937889653,-500.0,0.00026715,2]
[355160092,1740937889663,-400.963399,0.00026715,2]
[355160093,1740937889673,-877.08,0.00026715,2]
[355160094,1740937889684,-1696.63,0.00026715,2]
[355160095,1740937889695,-500.0,0.00026715,2]
[355160096,1740937889708,-152.16,0.00026715,2]
[355160097,1740937889718,-500.0,0.00026715,2]
[355160098,1740937889727,-312.078972,0.00026715,2]
[355160099,1740937889737,-992.81,0.00026715,2]
[355160100,1740937889747,-500.0,0.00026715,2]
[355160101,1740937889757,-500.0,0.00026715,2]
[355160102,1740937889772,-1164.54,0.00026715,2]
[355160103,1740937889798,-3123.18,0.00026715,2]
[355160104,1740937889821,-1410.0,0.00026715,2]
[355160105,1740937889846,-500.0,0.00026715,2]
[355160106,1740937889869,-1234.93,0.00026715,2]
[355160107,1740937889892,-1043.6,0.00026715,2]
[355160108,1740937889916,-500.0,0.00026715,2]
[355160109,1740937889943,-1694.27,0.00026715,2]
[355160110,1740937889969,-1334.61,0.00026715,2]
[355160111,1740937889989,-784.6,0.00026715,2]
[355160112,1740937890015,-500.0,0.00026715,2]
[355160113,1740937890032,-1672.23,0.00026715,2]
[355160114,1740937890054,-500.0,0.00026715,2]
[355160115,1740937890070,-2496.59,0.00026715,2]
[355160116,1740937890092,-1537.3,0.00026715,2]
[355160117,1740937890107,-1129.86,0.00026715,2]
[355160118,1740937890125,-907.66,0.00026715,2]
[355160119,1740937890145,-1407.11,0.00026715,2]
[355160120,1740937890164,-686.18,0.00026715,2]
[355160121,1740937890185,-649.02,0.00026715,2]
[355160122,1740937890204,-765.63,0.00026715,2]
[355160123,1740937890229,-1189.75,0.00026715,2]
[355160124,1740937890248,-533.52,0.00026715,2]
[355160125,1740937890267,-500.0,0.00026715,2]
[355160126,1740937890286,-767.22,0.00026715,2]
[355160127,1740937890306,-2132.66,0.00026715,2]
[355160128,1740937890325,-500.0,0.00026716,2]
[355160129,1740937890345,-500.0,0.00026716,2]
[355160130,1740937890363,-500.0,0.00026716,2]
[355160131,1740937890381,-500.0,0.00026716,2]
[355160132,1740937890400,-500.0,0.00026716,2]
[355160133,1740937890418,-561.04,0.00026716,2]
[355160134,1740937890436,-500.0,0.00026716,2]
[355160135,1740937890454,-571.0,0.00026716,2]
[355160136,1740937890474,-500.0,0.00026716,2]
[355160137,1740937890493,-500.0,0.00026716,2]
[355160138,1740937890511,-500.0,0.00026716,2]
[355160139,1740937890530,-500.0,0.00026716,2]
[355160140,1740937890548,-554.65,0.00026716,2]
[355160141,1740937890567,-151.0,0.00026716,7]
[355160142,1740937890585,-151.0,0.00026716,7]
[355160143,1740937890601,-500.0,0.00026716,2]
[355160144,1740937890620,-500.0,0.00026716,2]
[355160145,1740937890636,-151.0,0.00026716,7]
[355160146,1740937890654,-154.244265,0.00026716,7]
[355160147,1740937890673,-500.0,0.00026716,2]
[355160148,1740937890690,-318.31,0.00026716,2]
[355160149,1740937890711,-151.0,0.00026716,7]
[355160150,1740937890729,-500.0,0.00026716,2]
[355160151,1740937890749,-151.0,0.00026716,7]
[355160152,1740937890760,-500.0,0.00026716,2]
[355160153,1740937890770,-500.0,0.00026716,2]
[355160154,1740937890781,-1650.214993,0.00026716,7]
[355160155,1740937890792,-1650.214993,0.00026716,7]
[355160156,1740937890803,-422.83318181,0.00026748,2]
[355160157,1740937890814,-15851.85593155,0.00026748,2]
[355160158,1740937890824,-362.39064584,0.00026797,4]
[355160159,1740937890836,-588.82,0.00026814,2]
[355160160,1740937890846,-500.0,0.00026814,2]
[355160161,1740937890856,-500.0,0.00026814,2]
[355160162,1740937890866,-500.0,0.00026814,2]
[355160163,1740937890876,-500.0,0.00026814,2]
[355160164,1740937890886,-500.0,0.00026814,2]
[355160165,1740937890896,-594.03,0.00026814,2]
[355160166,1740937890906,-553.15,0.00026814,2]
[355160167,1740937890916,-641.23,0.00026814,2]
[355160168,1740937890927,-500.0,0.00026814,2]
[355160169,1740937890936,-586.53,0.00026814,2]
[355160170,1740937890947,-500.0,0.00026814,2]
[355160171,1740937890963,-500.0,0.00026814,2]
[355160172,1740937890974,-500.0,0.00026814,2]
[355160173,1740937890984,-520.82,0.00026814,2]
[355160174,1740937890994,-500.0,0.00026814,2]
[355160175,1740937891005,-500.0,0.00026814,2]
[355160176,1740937891015,-549.79,0.00026814,2]
[355160177,1740937891025,-583.9,0.00026814,2]
[355160178,1740937891035,-500.0,0.00026814,2]
[355160179,1740937891046,-500.0,0.00026814,2]
[355160180,1740937891056,-500.0,0.00026814,2]
[355160181,1740937891066,-500.0,0.00026814,2]
[355160182,1740937891076,-500.0,0.00026814,2]
[355160183,1740937891085,-550.36,0.00026814,2]
[355160184,1740937891096,-627.32,0.00026814,2]
[355160185,1740937891106,-500.0,0.00026814,2]
[355160186,1740937891116,-500.0,0.00026814,2]
[355160187,1740937891126,-617.83,0.00026814,2]
[355160188,1740937891137,-117.97634815,0.00026814,2]
[355160189,1740937892080,-382.02365185,0.00026814,2]
[355160190,1740937892091,-703.69,0.00026814,2]
[355160191,1740937892101,-599.32,0.00026814,2]
[355160192,1740937892111,-500.0,0.00026814,2]
[355160193,1740937892121,-267.44,0.00026814,2]
[355160194,1740937892130,-282.43752701,0.00026814,2]
[355160195,1740937892140,-500.0,0.00026814,2]
[355160196,1740937892149,-500.0,0.00026814,2]
[355160197,1740937892159,-670.1,0.00026814,2]
[355160198,1740937892168,-637.95,0.00026814,2]
[355160199,1740937892178,-813.8,0.00026814,2]
[355160200,1740937892188,-500.0,0.00026814,2]
[355160201,1740937892198,-2192.95,0.00026814,2]
[355160202,1740937892210,-500.0,0.00026814,2]
[355160203,1740937892221,-500.0,0.00026814,2]
[355160204,1740937892231,-807.59,0.00026814,2]
[355160205,1740937892240,-1250.18,0.00026814,2]
[355160206,1740937892249,-500.0,0.00026814,2]
[355160207,1740937892259,-703.25,0.00026814,2]
[355160208,1740937892268,-1557.45,0.00026814,2]
[355160209,1740937892277,-1624.15,0.00026814,2]
[355160210,1740937892287,-1549.91,0.00026814,2]
[355160211,1740937892296,-1154.14,0.00026814,2]
[355160212,1740937892305,-730.08,0.00026814,2]
[355160213,1740937892314,-500.0,0.00026814,2]
[355160214,1740937892324,-856.1,0.00026814,2]
[355160215,1740937892334,-1218.98,0.00026814,2]
[355160216,1740937892344,-1590.11,0.00026814,2]
[355160217,1740937892353,-998.58,0.00026814,2]
[355160218,1740937892363,-500.0,0.00026814,2]
[355160219,1740937892372,-761.57,0.00026814,2]
[355160220,1740937892381,-763.27,0.00026814,2]
[355160221,1740937892390,-993.48,0.00026814,2]
[355160222,1740937892400,-855.19,0.00026814,2]
[355160223,1740937892409,-500.0,0.00026814,2]
[355160224,1740937892418,-925.83,0.00026814,2]
[355160225,1740937892427,-532.0,0.00026814,2]
[355160226,1740937892437,-604.56,0.00026814,2]
[355160227,1740937892446,-559.41,0.00026814,2]
[355160228,1740937892456,-500.0,0.00026814,2]
[355160229,1740937892470,-565.81,0.00026814,2]
[355160230,1740937892479,-964.16,0.00026814,2]
[355160231,1740937892488,-649.62,0.00026814,2]
[355160232,1740937892498,-500.0,0.00026814,2]
[355160233,1740937892507,-500.0,0.00026814,2]
[355160234,1740937892516,-500.0,0.00026814,2]
[355160235,1740937892525,-1097.56,0.00026814,2]
[355160236,1740937892535,-500.0,0.00026814,2]
[355160237,1740937892544,-1028.47,0.00026814,2]
[355160238,1740937892553,-868.34,0.00026814,2]
[355160239,1740937892563,-500.0,0.00026814,2]
[355160240,1740937892572,-945.74,0.00026814,2]
[355160241,1740937892581,-1222.82,0.00026814,2]
[355160242,1740937892591,-175.35,0.00026814,2]
[355160243,1740937892600,-500.0,0.00026814,2]
[355160244,1740937892610,-883.05,0.00026814,2]
[355160245,1740937892619,-704.4,0.00026814,2]
[355160246,1740937892629,-6234.66,0.00026814,2]
[355160247,1740937892638,-557.6,0.00026814,2]
[355160248,1740937892648,-500.0,0.00026814,2]
[355160249,1740937892658,-500.0,0.00026814,2]
[355160250,1740937892668,-1146.22,0.00026814,2]
[355160251,1740937892678,-500.0,0.00026814,2]
[355160252,1740937892687,-500.0,0.00026814,2]
[355160253,1740937892697,-1442.71,0.00026814,2]
[355160254,1740937892706,-500.0,0.00026815,2]
[355160255,1740937892719,-500.0,0.00026815,2]
[355160256,1740937892729,-500.0,0.00026815,2]
[355160257,1740937892738,-500.0,0.00026815,2]
[355160258,1740937892747,-500.0,0.00026815,2]
[355160259,1740937892757,-253.5,0.00026815,2]
[355160260,1740937892766,-559.857533,0.00026815,7]
[355160261,1740937892776,-559.857533,0.00026815,7]
[355160262,1740937892786,-158.379694,0.00026815,7]
[355160263,1740937892795,-176.82,0.00026815,2]
[355160264,1740937892805,-500.0,0.00026815,2]
[355160265,1740937892815,-500.0,0.00026815,2]
[355160266,1740937892824,-518.68,0.00026815,2]
[355160267,1740937892834,-151.0,0.00026815,7]
[355160268,1740937892844,-151.0,0.00026815,7]
[355160269,1740937892854,-636.11,0.00026815,2]
[355160270,1740937892864,-500.0,0.00026815,2]
[355160271,1740937892874,-648.35,0.00026815,2]
[355160272,1740937892884,-500.0,0.00026815,2]
[355160273,1740937892893,-500.0,0.00026815,2]
[355160274,1740937892903,-151.0,0.00026815,7]
[355160275,1740937892912,-151.0,0.00026815,7]
[355160276,1740937892922,-500.0,0.00026815,2]
[355160277,1740937892931,-151.0,0.00026815,7]
[355160278,1740937892941,-588.19,0.00026815,2]
[355160279,1740937892954,-500.0,0.00026815,2]
[355160280,1740937892968,-500.0,0.00026815,2]
[355160281,1740937892978,-500.0,0.00026815,2]
[355160282,1740937892987,-500.0,0.00026815,2]
[355160283,1740937892997,-500.0,0.00026815,2]
[355160284,1740937893007,-500.0,0.00026815,2]
[355160285,1740937893017,-1850.193824,0.00026815,7]
[355160286,1740937893027,-1850.193824,0.00026815,7]
[355160287,1740937893037,-981.07,0.00026815,2]
[355160288,1740937893047,-893.26,0.00026815,2]
[355160289,1740937893058,-726.79,0.00026815,2]
[355160290,1740937893068,-616.74,0.00026815,2]
[355160291,1740937893078,-561.65,0.00026815,2]
[355160292,1740937893088,-500.0,0.00026815,2]
[355160293,1740937893098,-500.0,0.00026815,2]
[355160294,1740937893108,-500.0,0.00026815,2]
[355160295,1740937893118,-500.0,0.00026815,2]
[355160296,1740937893128,-500.0,0.00026815,2]
[355160297,1740937893138,-500.0,0.00026815,2]
[355160298,1740937893148,-560.28,0.00026815,2]
[355160299,1740937893158,-500.0,0.00026815,2]
[355160300,1740937893168,-3950.62,0.00026815,2]
[355160301,1740937893178,-576.41,0.00026815,2]
[355160302,1740937893188,-500.0,0.00026815,2]
[355160303,1740937893198,-489.571373,0.00026815,7]
[355160304,1740937893208,-489.571373,0.00026815,7]
[355160305,1740937893221,-500.0,0.00026815,2]
[355160306,1740937893230,-679.32,0.00026815,2]
[355160307,1740937893240,-151.0,0.00026815,7]
[355160308,1740937893251,-500.0,0.00026815,2]
[355160309,1740937893260,-500.0,0.00026815,2]
[355160310,1740937893270,-500.0,0.00026815,2]
[355160311,1740937893280,-500.0,0.00026815,2]
[355160312,1740937893290,-582.51,0.00026815,2]
[355160313,1740937893299,-668.22,0.00026815,2]
[355160314,1740937893309,-500.0,0.00026815,2]
[355160315,1740937893319,-574.39,0.00026815,2]
[355160316,1740937893329,-500.0,0.00026815,2]
[355160317,1740937893340,-151.0,0.00026815,7]
[355160318,1740937893349,-661.62,0.00026815,2]
[355160319,1740937893360,-500.0,0.00026815,2]
[355160320,1740937893370,-500.0,0.00026815,2]
[355160321,1740937893381,-500.0,0.00026815,2]
[355160322,1740937893391,-500.0,0.00026815,2]
[355160323,1740937893401,-375.690979,0.00026815,7]
[355160324,1740937893411,-375.690979,0.00026815,7]
[355160325,1740937893421,-151.0,0.00026815,7]
[355160326,1740937893431,-384.517256,0.00026815,7]
[355160327,1740937893440,-500.0,0.00026815,2]
[355160328,1740937893450,-384.517256,0.00026815,7]
[355160329,1740937893464,-151.0,0.00026815,7]
[355160330,1740937893474,-551.39,0.00026815,2]
[355160331,1740937893484,-151.0,0.00026815,7]
[355160332,1740937893495,-500.0,0.00026815,2]
[355160333,1740937893505,-500.0,0.00026815,2]
[355160334,1740937893515,-883.35,0.00026815,2]
[355160335,1740937893525,-500.0,0.00026815,2]
[355160336,1740937893535,-500.0,0.00026815,2]
[355160337,1740937893544,-1359.56,0.00026815,2]
[355160338,1740937893555,-2139.64,0.00026815,2]
[355160339,1740937893566,-500.0,0.00026815,2]
[355160340,1740937893576,-500.0,0.00026815,2]
[355160341,1740937893587,-666.3,0.00026815,2]
[355160342,1740937893597,-1000.0,0.00026815,2]
[355160343,1740937893607,-506.21,0.00026815,2]
[355160344,1740937893618,-500.0,0.00026815,2]
[355160345,1740937893628,-1243.74,0.00026815,2]
[355160346,1740937893639,-151.0,0.00026815,7]
[355160347,1740937893649,-551.88,0.00026815,2]
[355160348,1740937893659,-1338.27,0.00026815,2]
[355160349,1740937893668,-580.22,0.00026815,2]
[355160350,1740937893678,-500.0,0.00026815,2]
[355160351,1740937893688,-500.0,0.00026815,2]
[355160352,1740937893699,-900.63,0.00026815,2]
[355160353,1740937893709,-500.0,0.00026815,2]
[355160354,1740937893722,-711.69,0.00026815,2]
[355160355,1740937893732,-1990.27,0.00026815,2]
[355160356,1740937893742,-500.0,0.00026815,2]
[355160357,1740937893752,-789.39,0.00026815,2]
[355160358,1740937893762,-2000.73,0.00026815,2]
[355160359,1740937893772,-561.03,0.00026815,2]
[355160360,1740937893782,-1144.17,0.00026815,2]
[355160361,1740937893793,-751.482566,0.00026815,7]
[355160362,1740937893803,-500.0,0.00026815,2]
[355160363,1740937893814,-751.482566,0.00026815,7]
[355160364,1740937893825,-151.0,0.00026815,7]
[355160365,1740937893836,-500.0,0.00026815,2]
[355160366,1740937893847,-151.0,0.00026815,7]
[355160367,1740937893857,-812.93,0.00026815,2]
[355160368,1740937893867,-615.1,0.00026815,2]
[355160369,1740937893877,-500.0,0.00026815,2]
[355160370,1740937893888,-623.5,0.00026815,2]
[355160371,1740937893898,-500.0,0.00026815,2]
[355160372,1740937893908,-500.0,0.00026815,2]
[355160373,1740937893918,-243.10788,0.00026815,7]
[355160374,1740937893932,-500.0,0.00026815,2]
[355160375,1740937893942,-243.10788,0.00026815,7]
[355160376,1740937893951,-762.88,0.00026815,2]
[355160377,1740937893968,-366.349161,0.00026815,7]
[355160378,1740937893980,-366.349161,0.00026815,7]
[355160379,1740937893990,-10234.7496282,0.00026829,2]
[355160380,1740937894000,-500.0,0.00026848,2]
[355160381,1740937894011,-500.0,0.00026849,2]
[355160382,1740937894022,-678.56,0.00026849,2]
[355160383,1740937894032,-500.0,0.00026849,2]
[355160384,1740937894042,-500.0,0.00026849,2]
[355160385,1740937894052,-500.0,0.00026849,2]
[355160386,1740937894061,-701.59,0.00026849,2]
[355160387,1740937894071,-500.0,0.00026849,2]
[355160388,1740937894081,-500.0,0.00026849,2]
[355160389,1740937894091,-2231.13453195,0.00026874,2]
[355160390,1740937894101,-1214.77,0.00026884,2]
[355160391,1740937894111,-199.17632994,0.00026889,2]
[355160392,1740937894120,-2000.0,0.000269,9]
[355160393,1740937894130,-202.5,0.00026968,30]
[355160394,1740937894140,-497.9852296,0.00026973,2]
[355160395,1740937894150,-150.5,0.00026978,30]
[355160396,1740937894160,-500.0,0.00026988,2]
[355160397,1740937894169,-500.0,0.00026988,2]
[355160398,1740937894179,-1027.09,0.00026988,2]
[355160399,1740937894190,-500.0,0.00026988,2]
[355160400,1740937894199,-500.0,0.00026988,2]
[355160401,1740937894209,-661.31,0.00026988,2]
[355160402,1740937894221,-500.0,0.00026988,2]
[355160403,1740937894231,-664.68,0.00026988,2]
[355160404,1740937894241,-336.98399993,0.00026988,2]
[355160405,1740937894251,-500.0,0.00026988,2]
[355160406,1740937894261,-688.44,0.00026988,2]
[355160407,1740937894271,-799.43,0.00026988,2]
[355160408,1740937894281,-1011.96,0.00026988,2]
[355160409,1740937894290,-500.0,0.00026988,2]
[355160410,1740937894300,-547.39,0.00026988,2]
[355160411,1740937894310,-980.75,0.00026988,2]
[355160412,1740937894319,-758.27,0.00026988,2]
[355160413,1740937894329,-500.0,0.00026988,2]
[355160414,1740937894339,-638.55,0.00026988,2]
[355160415,1740937894349,-500.0,0.00026988,2]
[355160416,1740937894359,-500.0,0.00026988,2]
[355160417,1740937894370,-500.0,0.00026988,2]
[355160418,1740937894380,-537.89,0.00026988,2]
[355160419,1740937894390,-1342.57,0.00026988,2]
[355160420,1740937894400,-500.0,0.00026988,2]
[355160421,1740937894410,-501.29,0.00026988,2]
[355160422,1740937894420,-2905.46,0.00026988,2]
[355160423,1740937894430,-500.0,0.00026989,2]
[355160424,1740937894440,-400.963399,0.00026989,2]
[355160425,1740937894451,-877.08,0.00026989,2]
[355160426,1740937894461,-1696.63,0.00026989,2]
[355160427,1740937894475,-500.0,0.00026989,2]
[355160428,1740937894485,-592.26,0.00026989,2]
[355160429,1740937894495,-312.078972,0.00026989,2]
[355160430,1740937894506,-992.81,0.00026989,2]
[355160431,1740937894517,-500.0,0.00026989,2]
[355160432,1740937894527,-1164.54,0.00026989,2]
[355160433,1740937894538,-3123.18,0.00026989,2]
[355160434,1740937894548,-1410.0,0.00026989,2]
[355160435,1740937894558,-500.0,0.00026989,2]
[355160436,1740937894568,-1234.93,0.00026989,2]
[355160437,1740937894578,-1043.6,0.00026989,2]
[355160438,1740937894588,-500.0,0.00026989,2]
[355160439,1740937894599,-1694.27,0.00026989,2]
[355160440,1740937894610,-1334.61,0.00026989,2]
[355160441,1740937894621,-784.6,0.00026989,2]
[355160442,1740937894632,-500.0,0.00026989,2]
[355160443,1740937894642,-1672.23,0.00026989,2]
[355160444,1740937894655,-500.0,0.00026989,2]
[355160445,1740937894665,-2496.59,0.00026989,2]
[355160446,1740937894676,-1537.3,0.00026989,2]
[355160447,1740937894686,-1129.86,0.00026989,2]
[355160448,1740937894697,-907.66,0.00026989,2]
[355160449,1740937894707,-1407.11,0.00026989,2]
[355160450,1740937894721,-686.18,0.00026989,2]
[355160451,1740937894733,-649.02,0.00026989,2]
[355160452,1740937894743,-765.63,0.00026989,2]
[355160453,1740937894754,-1189.75,0.00026989,2]
[355160454,1740937894763,-533.52,0.00026989,2]
[355160455,1740937894773,-243.10788,0.00026989,7]
[355160456,1740937894784,-500.0,0.00026989,2]
[355160457,1740937894794,-767.22,0.00026989,2]
[355160458,1740937894804,-243.10788,0.00026989,7]
[355160459,1740937894815,-2132.66,0.00026989,2]
[355160460,1740937894825,-500.0,0.0002699,2]
[355160461,1740937894835,-500.0,0.0002699,2]
[355160462,1740937894845,-443.77,0.0002699,2]
[355160463,1740937894856,-500.0,0.0002699,2]
[355160464,1740937894866,-500.0,0.0002699,2]
[355160465,1740937894877,-561.04,0.0002699,2]
[355160466,1740937894887,-500.0,0.0002699,2]
[355160467,1740937894897,-571.0,0.0002699,2]
[355160468,1740937894908,-500.0,0.0002699,2]
[355160469,1740937894918,-446.07144545,0.0002699,2]
[355160470,1740937894929,-500.0,0.0002699,2]
[355160471,1740937894940,-500.0,0.0002699,2]
[355160472,1740937894952,-554.65,0.0002699,2]
[355160473,1740937894965,-526.49,0.0002699,2]
[355160474,1740937894975,-500.0,0.0002699,2]
[355160475,1740937894985,-500.0,0.0002699,2]
[355160476,1740937894995,-500.0,0.0002699,2]
[355160477,1740937895005,-500.0,0.0002699,2]
[355160478,1740937895014,-500.0,0.0002699,2]
[355160479,1740937895024,-12357.00000096,0.00026997,2]
[355160480,1740937895034,-763.27,0.00026999,2]